[Event "ISR-chT 2018"]
[Site "Israel"]
[Date "2018.01.19"]
[Round "3"]
[White "Mikhail, Botvinnik"]
[Black "Shohat, Yotam"]
[Result "1-0"]
[ECO "A56"]
[WhiteElo "2368"]
[BlackElo "2204"]
[Annotator "NA"]
[PlyCount "108"]
[EventDate "2018.??.??"]
[EventType "team-tourn"]
[EventCountry "ISR"]
[SourceTitle "playchess.com"]
[Source "ChessBase"]
[SourceQuality "1"]
[TimeControl "40/5400+30:1800+30"]

1. d4 Nf6 2. c4 c5 3. Nf3 cxd4 4. Nxd4 Nc6 5. Nc3 g6 6. g3 Bg7 7. Bg2 O-O 8. O-O d6 9. b3 Nxd4 10. Qxd4 Be6 11. Bb2 {LiveBook: 7 Games} Qa5 {A39: Symmetrical English vs ...g6: 4 Bg2 Bg7 5 Nf3 Nf6 6 0-0 0-0 7 d4} 12. Rac1 Rab8 13. Qd2 Rfc8 14. Rfd1 a6 15. Nd5 $146 ({Predecessor:} 15. Na4 Qxd2 16. Rxd2 b5 17. cxb5 Rxc1+ 18. Bxc1 axb5 19. Nc3 {0-1 (60) Altounian,L (2454)-Hess,R (2590) Saint Louis 2010}) 15... Qxd2 16. Rxd2 Bxd5 17. cxd5 Nd7 18. Rxc8+ Rxc8 19. Ba3 Kf8 20. e3 $11 Ke8 21. Kf1 b5 22. Ke2 a5 23. b4 a4 24. Kd1 Nb6 25. Bf1 Nc4 26. Rc2 Kd8 27. Bc1 Rc7 28. Bd2 e6 29. e4 exd5 30. exd5 Kc8 31. Bxc4 bxc4 32. Bc3 Bxc3 33. Rxc3 Kb7 34. Re3 Ka6 35. Kc2 Kb5 36. Kc3 a3 37. Re8 Rb7 38. Ra8 Re7 39. Rxa3 Re2 40. Ra5+ Kb6 41. Kxc4 Rxf2 42. Ra8 Rxh2 43. a4 Rc2+ 44. Kd3 Rg2 45. a5+ Kb5 46. Rb8+ Ka6 47. Rb6+ Ka7 48. Rxd6 h5 49. Kc4 Rxg3 50. Rf6 h4 51. Rxf7+ Kb8 52. d6 h3 53. Rf8+ Kb7 54. d7 Rg4+ 1-0

[Event "ISR-chT 2018"]
[Site "Israel"]
[Date "2018.01.19"]
[Round "3"]
[White "Bitensky, Igor"]
[Black "Kaplivatski, Alexander"]
[Result "1-0"]
[ECO "A46"]
[WhiteElo "2355"]
[BlackElo "2217"]
[Annotator "NA"]
[PlyCount "78"]
[EventDate "2018.??.??"]
[EventType "team-tourn"]
[EventCountry "ISR"]
[SourceTitle "playchess.com"]
[Source "ChessBase"]
[SourceQuality "1"]
[TimeControl "40/5400+30:1800+30"]

1. d4 {[%emt 0:00:00]} Nf6 {[%emt 0:00:15]} 2. Nf3 {[%emt 0:00:11]} e6 {[%emt 0:00:31]} 3. Bf4 {[%emt 0:00:04]} c5 {[%emt 0:00:45]} 4. e3 {[%emt 0:00:45]} Qb6 {[%emt 0:01:05]} 5. Qc1 {[%emt 0:02:58]} Nc6 {[%emt 0:01:22]} 6. c3 {[%emt 0:00:20]} d5 {[%emt 0:01:18]} 7. Nbd2 {[%emt 0:04:08]} Nh5 {[%emt 0:10:05]} 8. Bg3 {[%emt 0:07:42]} Nxg3 {[%emt 0:07:40]} 9. hxg3 {[%emt 0:00:11]} Bd6 {[%emt 0:00:10]} 10. Qc2 {[%emt 0:04:16]} h6 {[%emt 0:05:31]} 11. a4 {[%emt 0:28:02]} cxd4 {[%emt 0:05:55]} 12. exd4 {[%emt 0:00:32]} Bd7 {[%emt 0:02:28]} 13. Bd3 {[%emt 0:02:34]} Rc8 {[%emt 0:07:52]} 14. Qb3 $15 {[%emt 0:00:26]} Qxb3 {[%emt 0:02:22]} 15. Nxb3 {[%emt 0:00:02]} O-O {[%emt 0:00:23]} 16. O-O {[%emt 0:05:06]} f6 {[%emt 0:07:46]} 17. Rfe1 {[%emt 0:02:09]} g5 {[%emt 0:11:21]} 18. Bb5 {[%emt 0:09:48]} Kg7 {[%emt 0:03:39]} 19. Nc5 {[%emt 0:09:33]} Bxc5 {[%emt 0:00:31]} 20. dxc5 {[%emt 0:00:02]} a6 {[%emt 0:06:08]} 21. Bf1 {[%emt 0:00:26]} e5 {[%emt 0:03:25]} 22. b4 {[%emt 0:01:26]} Ne7 {[%emt 0:01:54]} 23. Nd4 {[%emt 0:06:51]} Kf7 {[%emt 0:04:28]} 24. Nb3 {[%emt 0:00:11]} Be6 {[%emt 0:00:20]} 25. f4 {[%emt 0:05:17]} Ng6 {[%emt 0:05:19]} 26. fxe5 {[%emt 0:00:03]} fxe5 {[%emt 0:00:54]} 27. Be2 {[%emt 0:02:51]} g4 {[%emt 0:06:49]} 28. Na5 {[%emt 0:01:06]} Rc7 {[%emt 0:00:29]} 29. c4 {[%emt 0:00:10]} dxc4 {[%emt 0:03:18]} 30. Bxc4 {[%emt 0:00:19]} Rd8 {[%emt 0:00:45]} 31. Rad1 {[%emt 0:01:42]} Rcd7 {[%emt 0:00:32]} 32. Rxd7+ {[%emt 0:01:26]} Rxd7 {[%emt 0:00:02]} 33. b5 {[%emt 0:01:06]} axb5 {[%emt 0:00:31]} 34. axb5 {[%emt 0:00:05]} Rc7 {[%emt 0:00:57]} 35. c6 {[%emt 0:01:46]} bxc6 {[%emt 0:00:35]} 36. b6 {[%emt 0:00:02]} Re7 {[%emt 0:00:33]} 37. b7 {[%emt 0:01:10]} Re8 {[%emt 0:00:30]} 38. Bxe6+ {[%emt 0:01:06]} Kxe6 {[%emt 0:00:03]} 39. Nxc6 {[%emt 0:00:06]} Kd5 1-0

[Event "ISR-chT 2018"]
[Site "Israel"]
[Date "2018.01.19"]
[Round "3"]
[White "Deutsch, Eyal"]
[Black "Kaplan, Sasha"]
[Result "1/2-1/2"]
[ECO "D00"]
[WhiteElo "2350"]
[BlackElo "2396"]
[Annotator "NA"]
[PlyCount "68"]
[EventDate "2018.??.??"]
[EventType "team-tourn"]
[EventCountry "ISR"]
[SourceTitle "playchess.com"]
[Source "ChessBase"]
[SourceQuality "1"]
[TimeControl "40/5400+30:1800+30"]

{[%evp 17,63,6,9,0,35,33,37,27,32767,32767,32767,32767,20,0,0,10,26,15,32,25,37,24,32767,29,32767,24,47,32767,28,23,32767,31,42,32767,32767,24,29,23,32767,32767,32767,32767,32767,32767,32767,32767,32767,0]} 1. d4 d5 2. Bf4 Nf6 3. e3 Bf5 4. c4 c6 5. Qb3 {D10: Slav Defence: 3 cxd5 (without early Nf3) and 3 Nc3} (5. Nc3 e6 6. Qb3 Qc8 7. Nf3 Nbd7 8. h3 Be7 9. Be2 O-O 10. O-O Nb6 11. c5 Nbd7 12. Qd1 Ne4 13. Rc1 Re8 14. Nxe4 Bxe4 15. Nd2 Bg6 16. Bh2 a5 17. Nb1 Bd8 18. Nc3 e5 19. Re1 Bc7 {½-½ (60) Grischuk,A (2810)-Wang,H (2710) Beijing 2014}) 5... Qb6 6. Nc3 dxc4 7. Bxc4 e6 8. Nf3 h6 9. h3 Nbd7 10. O-O Be7 11. Rfe1 Qxb3 12. Bxb3 Ne4 13. Nxe4 Bxe4 14. Nd2 $146 Bd3 15. Nc4 Bxc4 16. Bxc4 O-O 17. Rac1 Rfd8 18. Bc7 Re8 19. Ba5 Rac8 20. Red1 Nb6 21. Be2 Red8 22. Bf3 Kf8 23. Kf1 Bd6 24. Ke2 Ke7 25. Rc2 Bc7 26. g3 Nd5 27. Be1 Bd6 28. a3 Bc7 29. Rd3 Bd6 30. Rb3 Rd7 31. a4 f5 32. a5 $11 a6 33. Bd2 Rcc7 34. Be1 Rd8 1/2-1/2

[Event "ISR-chT 2018"]
[Site "Israel"]
[Date "2018.01.19"]
[Round "3"]
[White "Frenkel, Ran"]
[Black "Drori, Saar"]
[Result "0-1"]
[ECO "D85"]
[WhiteElo "2189"]
[BlackElo "2380"]
[Annotator "NA"]
[PlyCount "58"]
[EventDate "2018.??.??"]
[EventType "team-tourn"]
[EventCountry "ISR"]
[SourceTitle "playchess.com"]
[Source "ChessBase"]
[SourceQuality "1"]
[TimeControl "40/5400+30:1800+30"]

1. d4 {[%emt 0:00:00]} Nf6 {[%emt 0:00:08]} 2. c4 {[%emt 0:00:00]} g6 {[%emt 0:00:12]} 3. Nc3 {[%emt 0:00:00]} d5 {[%emt 0:00:04]} 4. cxd5 {[%emt 0:00:00]} Nxd5 {[%emt 0:00:06]} 5. e4 {[%emt 0:00:00]} Nxc3 {[%emt 0:00:09]} 6. bxc3 {[%emt 0:00:00]} Bg7 {[%emt 0:00:09]} 7. Nf3 {[%emt 0:00:00]} c5 {[%emt 0:00:05]} 8. Rb1 {[%emt 0:00:00]} O-O {[%emt 0:01:09]} 9. Be2 {[%emt 0:00:08]} cxd4 {[%emt 0:00:51]} 10. cxd4 {[%emt 0:00:17]} Qa5+ {[%emt 0:00:11]} 11. Qd2 {[%emt 0:00:17]} Qxd2+ {[%emt 0:03:50]} 12. Bxd2 {[%emt 0:00:06]} b6 {[%emt 0:03:54]} 13. O-O {[%emt 0:02:56]} Bb7 {[%emt 0:00:30]} 14. d5 {[%emt 0:00:56]} Ba6 {[%emt 0:13:44]} 15. Bxa6 {[%emt 0:04:44]} Nxa6 {[%emt 0:00:08]} 16. Bg5 {[%emt 0:10:20]} f6 {[%emt 0:06:55]} 17. Be3 {[%emt 0:01:24]} f5 {[%emt 0:02:12] LiveBook: 12 Games} 18. Ng5 $11 {[%emt 0:21:15]} fxe4 {[%emt 0:05:03]} 19. Ne6 {[%emt 0:26:09]} Rfc8 {[%emt 0:11:24]} 20. Rfc1 {[%emt 0:10:41]} Be5 {[%emt 0:07:53]} 21. Bg5 {[%emt 0:16:19]} Bd6 {[%emt 0:03:06]} 22. Re1 {[%emt 0:02:24]} Nb4 {[%emt 0:00:31]} 23. Rxe4 {[%emt 0:01:52]} Nxa2 {[%emt 0:03:52]} 24. Rbe1 {[%emt 0:00:35]} Nc3 {[%emt 0:00:19]} 25. Rd4 {[%emt 0:00:17]} a5 {[%emt 0:00:48]} 26. h4 {[%emt 0:01:40]} a4 {[%emt 0:00:08]} 27. Nf4 {[%emt 0:00:12]} a3 {[%emt 0:00:18]} 28. Nd3 {[%emt 0:00:51]} a2 {[%emt 0:00:11]} 29. Ra1 {[%emt 0:00:07]} Ne2+ {[%emt 0:00:05]} 0-1

[Event "ISR-chT 2018"]
[Site "Israel"]
[Date "2018.02.09"]
[Round "5"]
[White "Moskovich, Daniel"]
[Black "Poleg, Dan"]
[Result "1/2-1/2"]
[ECO "D05"]
[WhiteElo "2146"]
[BlackElo "2278"]
[Annotator "NA"]
[PlyCount "55"]
[EventDate "2018.??.??"]
[EventType "team-tourn"]
[EventCountry "ISR"]
[SourceTitle "playchess.com"]
[Source "ChessBase"]
[SourceQuality "1"]
[TimeControl "40/5400+30:1800+30"]

1. d4 Nf6 2. Nf3 e6 3. e3 d5 4. Bd3 c5 5. c3 Nc6 6. Nbd2 Bd6 7. O-O O-O 8. dxc5 Bxc5 9. b4 Bd6 10. Bb2 Qe7 11. b5 Ne5 12. Nxe5 Bxe5 13. f4 Bc7 14. c4 e5 15. cxd5 exf4 16. Nc4 Ng4 17. exf4 Rd8 18. Qc2 Rxd5 19. Bxh7+ Kh8 20. Rae1 Qc5+ 21. Kh1 Bf5 22. Bxf5 Rxf5 23. h3 Rh5 24. Qe2 Rh4 25. Qe7 Nf2+ 26. Rxf2 Qxf2 27. Bxg7+ Kxg7 28. Qg5+ 1/2-1/2